[Event "*** MasterClass Titled Tuesday Blitz"]
[Site "Chess.com"]
[Date "2017.08.01"]
[Round "9"]
[White "oskariot"]
[Black "TryingToGetBetter94"]
[Result "1-0"]
[WhiteElo "2500"]
[BlackElo "2323"]
[TimeControl "180+2"]
[EndTime "15:05:37 PDT"]
[Termination "oskariot won on time"]

1. c4 {[%clk 0:03:01.9]} 1... Nf6 {[%clk 0:03:00.3]} 2. Nc3 {[%clk 0:03:02.2]}
2... e5 {[%clk 0:03:01.4]} 3. e3 {[%clk 0:03:02.4]} 3... d5 {[%clk 0:03:01.9]}
4. cxd5 {[%clk 0:03:02.8]} 4... Nxd5 {[%clk 0:03:03.8]} 5. Qc2 {[%clk
0:03:04.3]} 5... Nc6 {[%clk 0:03:04.6]} 6. a3 {[%clk 0:03:04.8]} 6... Be7 {[%clk
0:03:02.6]} 7. Nf3 {[%clk 0:03:05.9]} 7... Be6 {[%clk 0:02:59]} 8. Bb5 {[%clk
0:03:06.1]} 8... f6 {[%clk 0:02:50.3]} 9. d4 {[%clk 0:03:03.2]} 9... Nxc3 {[%clk
0:02:42.3]} 10. bxc3 {[%clk 0:03:03.3]} 10... Bd7 {[%clk 0:02:34.2]} 11. Bd3
{[%clk 0:02:59]} 11... Be6 {[%clk 0:01:23.9]} 12. Bxh7 {[%clk 0:02:52.4]} 12...
Bf7 {[%clk 0:01:22.5]} 13. Bg6 {[%clk 0:02:48]} 13... Qd5 {[%clk 0:01:22.8]} 14.
Be4 {[%clk 0:02:30.7]} 14... Qc4 {[%clk 0:01:15.5]} 15. Bd3 {[%clk 0:02:26.8]}
15... Qd5 {[%clk 0:01:12.3]} 16. e4 {[%clk 0:02:23.6]} 16... Qa5 {[%clk
0:01:08.3]} 17. d5 {[%clk 0:02:23.7]} 17... Nd4 {[%clk 0:01:07.7]} 18. Nxd4
{[%clk 0:02:24.9]} 18... exd4 {[%clk 0:01:08.8]} 19. Bd2 {[%clk 0:02:26.5]}
19... dxc3 {[%clk 0:01:04.6]} 20. Bxc3 {[%clk 0:02:27.5]} 20... Qc5 {[%clk
0:01:04.4]} 21. Qa4+ {[%clk 0:02:16.7]} 21... c6 {[%clk 0:00:48.5]} 22. Bd4
{[%clk 0:01:56.3]} 22... Qd6 {[%clk 0:00:44.4]} 23. dxc6 {[%clk 0:01:45.2]}
23... bxc6 {[%clk 0:00:46.3]} 24. Rd1 {[%clk 0:01:43]} 24... O-O {[%clk
0:00:46.1]} 25. O-O {[%clk 0:01:41.9]} 25... Qxa3 {[%clk 0:00:40.2]} 26. Qxc6
{[%clk 0:01:38.4]} 26... Rac8 {[%clk 0:00:35.5]} 27. Qb7 {[%clk 0:01:36.3]}
27... Rcd8 {[%clk 0:00:23.5]} 28. Bb2 {[%clk 0:01:26.2]} 28... Qc5 {[%clk
0:00:19.3]} 29. Ba1 {[%clk 0:01:05.9]} 29... Rb8 {[%clk 0:00:18.5]} 30. Qa6
{[%clk 0:01:05.4]} 30... Rfd8 {[%clk 0:00:17.8]} 31. Be2 {[%clk 0:01:01.6]}
31... Rdc8 {[%clk 0:00:14.7]} 32. g3 {[%clk 0:00:58.5]} 32... Bb3 {[%clk
0:00:09.4]} 33. Rd7 {[%clk 0:00:50.5]} 33... Rc6 {[%clk 0:00:10.7]} 34. Qxa7
{[%clk 0:00:47.1]} 34... Qxa7 {[%clk 0:00:09.3]} 35. Rxa7 {[%clk 0:00:49]} 35...
Bc5 {[%clk 0:00:10.8]} 36. Rd7 {[%clk 0:00:48.5]} 36... Be6 {[%clk 0:00:11.2]}
37. Rd2 {[%clk 0:00:45.8]} 37... Bb4 {[%clk 0:00:10]} 38. Rb2 {[%clk 0:00:47]}
38... Rcb6 {[%clk 0:00:09]} 39. Rfb1 {[%clk 0:00:41.4]} 39... Kf8 {[%clk
0:00:08.2]} 40. Kg2 {[%clk 0:00:39.5]} 40... g5 {[%clk 0:00:08.9]} 41. h3 {[%clk
0:00:37.7]} 41... Kf7 {[%clk 0:00:09.8]} 42. Rc2 {[%clk 0:00:35.3]} 42... Kg6
{[%clk 0:00:08.7]} 43. Bd4 {[%clk 0:00:32.9]} 43... R6b7 {[%clk 0:00:08.9]} 44.
Rcb2 {[%clk 0:00:31.8]} 44... Bc8 {[%clk 0:00:04.9]} 45. Ba6 {[%clk 0:00:27.1]}
45... Ba3 {[%clk 0:00:06.5]} 46. Rxb7 {[%clk 0:00:26.6]} 46... Bxb7 {[%clk
0:00:07.9]} 47. Rxb7 {[%clk 0:00:27.4]} 47... Rd8 {[%clk 0:00:07.8]} 48. Be3
{[%clk 0:00:27.1]} 48... Ra8 {[%clk 0:00:07.8]} 49. Bd3 {[%clk 0:00:27.9]} 49...
Bd6 {[%clk 0:00:08.6]} 50. e5+ {[%clk 0:00:28.9]} 1-0

[Event "*** MasterClass Titled Tuesday Blitz"]
[Site "Chess.com"]
[Date "2017.08.01"]
[Round "9"]
[White "KyronGriffith"]
[Black "AlexanderKing"]
[Result "1-0"]
[WhiteElo "2346"]
[BlackElo "2414"]
[TimeControl "180+2"]
[EndTime "15:05:53 PDT"]
[Termination "KyronGriffith won on time"]

1. e4 {[%clk 0:03:01.9]} 1... e5 {[%clk 0:03:00.9]} 2. Nf3 {[%clk 0:03:01.6]}
2... Nc6 {[%clk 0:03:02]} 3. Bb5 {[%clk 0:03:02.9]} 3... Nf6 {[%clk 0:03:02.9]}
4. O-O {[%clk 0:02:56.2]} 4... Nxe4 {[%clk 0:03:03.4]} 5. d4 {[%clk 0:02:54]}
5... Nd6 {[%clk 0:03:04.1]} 6. dxe5 {[%clk 0:02:53.3]} 6... Nxb5 {[%clk
0:03:04.9]} 7. a4 {[%clk 0:02:55]} 7... Nbd4 {[%clk 0:03:06.2]} 8. Nxd4 {[%clk
0:02:56.7]} 8... Nxd4 {[%clk 0:03:08.1]} 9. Qxd4 {[%clk 0:02:58.2]} 9... d5
{[%clk 0:03:09.7]} 10. exd6 {[%clk 0:02:58.5]} 10... Qxd6 {[%clk 0:03:10.9]} 11.
Qe4+ {[%clk 0:02:55]} 11... Qe6 {[%clk 0:03:11.4]} 12. Qd4 {[%clk 0:02:56]}
12... Qd6 {[%clk 0:03:09.2]} 13. Qe4+ {[%clk 0:02:50.1]} 13... Qe6 {[%clk
0:03:09.8]} 14. Qf3 {[%clk 0:02:49.1]} 14... Bd6 {[%clk 0:02:51]} 15. Nc3 {[%clk
0:02:35.3]} 15... O-O {[%clk 0:02:39.1]} 16. Bf4 {[%clk 0:02:29.2]} 16... Bxf4
{[%clk 0:02:29.6]} 17. Qxf4 {[%clk 0:02:31.1]} 17... c6 {[%clk 0:02:23.3]} 18.
Rfe1 {[%clk 0:02:28.1]} 18... Qf5 {[%clk 0:02:24]} 19. Qxf5 {[%clk 0:02:21.1]}
19... Bxf5 {[%clk 0:02:25.9]} 20. Re7 {[%clk 0:02:22.2]} 20... b6 {[%clk
0:02:24.4]} 21. a5 {[%clk 0:01:58.2]} 21... Bxc2 {[%clk 0:02:15.3]} 22. f3
{[%clk 0:01:48.1]} 22... Bd3 {[%clk 0:01:35.8]} 23. Rc7 {[%clk 0:01:38.4]} 23...
c5 {[%clk 0:01:12.8]} 24. Nd5 {[%clk 0:01:32.6]} 24... Bc4 {[%clk 0:00:29.2]}
25. Ne3 {[%clk 0:01:27.5]} 25... Be6 {[%clk 0:00:29.8]} 26. axb6 {[%clk
0:01:07.5]} 26... axb6 {[%clk 0:00:31.7]} 27. Rxa8 {[%clk 0:01:08.9]} 27... Rxa8
{[%clk 0:00:32.9]} 28. Rb7 {[%clk 0:01:10.8]} 28... h5 {[%clk 0:00:32.1]} 29.
Rxb6 {[%clk 0:01:11.5]} 29... Ra2 {[%clk 0:00:24.3]} 30. h4 {[%clk 0:01:08.7]}
30... g6 {[%clk 0:00:23]} 31. Kf2 {[%clk 0:01:06.8]} 31... Kg7 {[%clk
0:00:18.9]} 32. Kg3 {[%clk 0:01:03.8]} 32... Ra4 {[%clk 0:00:14.1]} 33. Nd1
{[%clk 0:01:04.1]} 33... Rd4 {[%clk 0:00:12.8]} 34. Nc3 {[%clk 0:01:04.8]} 34...
Rb4 {[%clk 0:00:07]} 35. Rxb4 {[%clk 0:00:51.6]} 35... cxb4 {[%clk 0:00:08.9]}
36. Ne4 {[%clk 0:00:53.5]} 36... f5 {[%clk 0:00:03.4]} 37. Nc5 {[%clk
0:00:54.7]} 37... Bc4 {[%clk 0:00:02.8]} 38. Kf4 {[%clk 0:00:54.8]} 38... Kf6
{[%clk 0:00:04]} 39. g3 {[%clk 0:00:53.5]} 39... Bf1 {[%clk 0:00:03.1]} 40. Nd7+
{[%clk 0:00:43.7]} 40... Ke6 {[%clk 0:00:04.1]} 41. Ne5 {[%clk 0:00:45.6]} 41...
Kf6 {[%clk 0:00:03.3]} 42. Nc6 {[%clk 0:00:42.3]} 42... b3 {[%clk 0:00:02.5]}
43. Na5 {[%clk 0:00:43.9]} 43... Ke6 {[%clk 0:00:02.3]} 44. Nxb3 {[%clk
0:00:44.4]} 44... Kd5 {[%clk 0:00:03.9]} 45. Nd2 {[%clk 0:00:39.2]} 45... Be2
{[%clk 0:00:04.5]} 46. b4 {[%clk 0:00:31.4]} 46... Kd4 {[%clk 0:00:04.9]} 47.
Kg5 {[%clk 0:00:17.2]} 47... Ke3 {[%clk 0:00:05.3]} 48. Nb3 {[%clk 0:00:18]}
48... Bc4 {[%clk 0:00:04.8]} 49. Nc5 {[%clk 0:00:18.9]} 49... Kxf3 {[%clk
0:00:05.8]} 50. Kxg6 {[%clk 0:00:20.4]} 50... Kxg3 {[%clk 0:00:06.9]} 51. Kxh5
{[%clk 0:00:20.9]} 51... f4 {[%clk 0:00:04.8]} 52. Kg5 {[%clk 0:00:22.3]} 52...
f3 {[%clk 0:00:03.8]} 53. Ne4+ {[%clk 0:00:23.4]} 53... Kg2 {[%clk 0:00:04.2]}
54. h5 {[%clk 0:00:24.1]} 54... Bd5 {[%clk 0:00:04.1]} 55. Nd2 {[%clk
0:00:25.3]} 55... f2 {[%clk 0:00:03.1]} 56. Kf4 {[%clk 0:00:26.8]} 56... Kh3
{[%clk 0:00:02.3]} 57. h6 {[%clk 0:00:27.9]} 57... Kg2 {[%clk 0:00:02.7]} 58. h7
{[%clk 0:00:29]} 1-0

[Event "*** MasterClass Titled Tuesday Blitz"]
[Site "Chess.com"]
[Date "2017.08.01"]
[Round "9"]
[White "Grootneus"]
[Black "renanreis"]
[Result "0-1"]
[WhiteElo "2057"]
[BlackElo "2116"]
[TimeControl "180+2"]
[EndTime "15:06:14 PDT"]
[Termination "renanreis won on time"]

1. e4 {[%clk 0:03:01.9]} 1... e6 {[%clk 0:02:55.9]} 2. d4 {[%clk 0:03:02.6]}
2... d5 {[%clk 0:02:55]} 3. Nc3 {[%clk 0:03:03.9]} 3... Nf6 {[%clk 0:02:53.8]}
4. Bg5 {[%clk 0:03:04.6]} 4... Be7 {[%clk 0:02:54.3]} 5. e5 {[%clk 0:03:05.6]}
5... Nfd7 {[%clk 0:02:55.3]} 6. Bxe7 {[%clk 0:03:07.5]} 6... Qxe7 {[%clk
0:02:56]} 7. f4 {[%clk 0:03:09.2]} 7... a6 {[%clk 0:02:57.1]} 8. Nf3 {[%clk
0:03:10.8]} 8... c5 {[%clk 0:02:58.1]} 9. dxc5 {[%clk 0:03:10.5]} 9... Nxc5
{[%clk 0:02:57.6]} 10. Bd3 {[%clk 0:03:08.8]} 10... Nc6 {[%clk 0:02:58.3]} 11.
Qd2 {[%clk 0:03:09.8]} 11... O-O {[%clk 0:02:58.8]} 12. O-O {[%clk 0:03:10.6]}
12... b5 {[%clk 0:02:56.6]} 13. Ne2 {[%clk 0:02:55.7]} 13... f6 {[%clk
0:02:50.4]} 14. Ned4 {[%clk 0:02:44.8]} 14... Nxd4 {[%clk 0:02:46.4]} 15. Nxd4
{[%clk 0:02:46.7]} 15... fxe5 {[%clk 0:02:39.3]} 16. fxe5 {[%clk 0:02:46.6]}
16... Bd7 {[%clk 0:02:36.6]} 17. Be2 {[%clk 0:02:08.5]} 17... Ne4 {[%clk
0:02:36.2]} 18. Qe3 {[%clk 0:02:09.6]} 18... Qb4 {[%clk 0:02:16]} 19. Bg4 {[%clk
0:01:54.7]} 19... Qxb2 {[%clk 0:01:55.5]} 20. Rab1 {[%clk 0:01:23]} 20... Qc3
{[%clk 0:01:40.2]} 21. Qxc3 {[%clk 0:00:38.5]} 21... Nxc3 {[%clk 0:01:42.1]} 22.
Rbe1 {[%clk 0:00:31.2]} 22... Rxf1+ {[%clk 0:01:32.3]} 23. Rxf1 {[%clk
0:00:33.1]} 23... Re8 {[%clk 0:01:32.7]} 24. g3 {[%clk 0:00:15.2]} 24... Nxa2
{[%clk 0:01:28.9]} 25. Ra1 {[%clk 0:00:15.3]} 25... Nb4 {[%clk 0:01:29.7]} 26.
c3 {[%clk 0:00:16.8]} 26... Nd3 {[%clk 0:01:27.5]} 27. Rxa6 {[%clk 0:00:16]}
27... Nxe5 {[%clk 0:01:28.9]} 28. Bxe6+ {[%clk 0:00:13.9]} 28... Bxe6 {[%clk
0:01:30]} 29. Nxe6 {[%clk 0:00:14.6]} 29... Rc8 {[%clk 0:01:26.6]} 30. Nd4
{[%clk 0:00:10.4]} 30... Rxc3 {[%clk 0:01:24.3]} 31. Nxb5 {[%clk 0:00:11.6]}
31... Rc2 {[%clk 0:01:22.9]} 32. Nd4 {[%clk 0:00:11]} 32... Rd2 {[%clk
0:01:22.6]} 33. Nf5 {[%clk 0:00:12.3]} 33... Nf3+ {[%clk 0:01:22.6]} 34. Kf1
{[%clk 0:00:12.1]} 34... Nxh2+ {[%clk 0:01:23.5]} 35. Ke1 {[%clk 0:00:13.8]}
35... Nf3+ {[%clk 0:01:24.6]} 36. Kf1 {[%clk 0:00:15.5]} 36... g6 {[%clk
0:01:21.2]} 37. Nh6+ {[%clk 0:00:09.3]} 37... Kg7 {[%clk 0:01:20.9]} 38. Ng4
{[%clk 0:00:11]} 38... Nh2+ {[%clk 0:01:16.9]} 39. Nxh2 {[%clk 0:00:12.1]} 39...
Rxh2 {[%clk 0:01:18.8]} 40. Rd6 {[%clk 0:00:13.5]} 40... Rd2 {[%clk 0:01:18.1]}
41. Ke1 {[%clk 0:00:14.9]} 41... Rd3 {[%clk 0:01:18.2]} 42. g4 {[%clk
0:00:07.5]} 42... Kh6 {[%clk 0:01:16.7]} 43. Ke2 {[%clk 0:00:08.4]} 43... Rd4
{[%clk 0:01:16.1]} 44. Ke3 {[%clk 0:00:08.6]} 44... Rxg4 {[%clk 0:01:12.9]} 45.
Rxd5 {[%clk 0:00:10]} 45... Rg5 {[%clk 0:01:09.9]} 46. Rd7 {[%clk 0:00:10.2]}
46... Rf5 {[%clk 0:01:07.8]} 47. Ke2 {[%clk 0:00:10.6]} 47... Rf6 {[%clk
0:01:05.3]} 48. Ke3 {[%clk 0:00:11]} 48... g5 {[%clk 0:01:06.6]} 49. Ke2 {[%clk
0:00:09.1]} 49... Kg6 {[%clk 0:01:07.5]} 50. Rd8 {[%clk 0:00:03.5]} 50... h5
{[%clk 0:01:07.8]} 51. Rg8+ {[%clk 0:00:03.9]} 51... Kf5 {[%clk 0:01:08.9]} 52.
Kf2 {[%clk 0:00:04.4]} 52... Kg4+ {[%clk 0:01:09.5]} 53. Kg2 {[%clk 0:00:06]}
53... Ra6 {[%clk 0:01:08.5]} 54. Rb8 {[%clk 0:00:06.1]} 54... Ra2+ {[%clk
0:01:09.2]} 55. Kg1 {[%clk 0:00:07.6]} 55... Ra3 {[%clk 0:00:58]} 56. Kg2 {[%clk
0:00:05.7]} 56... Ra2+ {[%clk 0:00:55.9]} 57. Kg1 {[%clk 0:00:06.5]} 57... h4
{[%clk 0:00:56.4]} 58. Rb4+ {[%clk 0:00:06.5]} 58... Kh5 {[%clk 0:00:53.4]} 59.
Rb3 {[%clk 0:00:04.1]} 59... Rc2 {[%clk 0:00:50.5]} 60. Ra3 {[%clk 0:00:04.7]}
60... Rc5 {[%clk 0:00:49.1]} 0-1

[Event "*** MasterClass Titled Tuesday Blitz"]
[Site "Chess.com"]
[Date "2017.08.01"]
[Round "9"]
[White "FairChess_on_YouTube"]
[Black "Gordima"]
[Result "1-0"]
[WhiteElo "2746"]
[BlackElo "2602"]
[TimeControl "180+2"]
[EndTime "15:06:15 PDT"]
[Termination "FairChess_on_YouTube won on time"]

1. d4 {[%clk 0:03:01.9]} 1... Nf6 {[%clk 0:03:00.3]} 2. Bg5 {[%clk 0:03:02.7]}
2... d5 {[%clk 0:02:50]} 3. Nd2 {[%clk 0:03:03.2]} 3... Nbd7 {[%clk 0:02:47.2]}
4. Ngf3 {[%clk 0:03:02.8]} 4... b6 {[%clk 0:02:45.3]} 5. e3 {[%clk 0:03:02.2]}
5... Bb7 {[%clk 0:02:46.1]} 6. Bd3 {[%clk 0:03:03.3]} 6... g6 {[%clk 0:02:45.3]}
7. Qe2 {[%clk 0:03:01.5]} 7... Bg7 {[%clk 0:02:45.6]} 8. e4 {[%clk 0:03:00.1]}
8... dxe4 {[%clk 0:02:40.7]} 9. Nxe4 {[%clk 0:03:02]} 9... O-O {[%clk 0:02:38]}
10. O-O-O {[%clk 0:03:03]} 10... Rc8 {[%clk 0:02:30.6]} 11. h4 {[%clk
0:03:02.5]} 11... h5 {[%clk 0:02:23.1]} 12. Rhe1 {[%clk 0:02:44.8]} 12... Nd5
{[%clk 0:02:22.1]} 13. Kb1 {[%clk 0:02:41.5]} 13... Re8 {[%clk 0:02:19.6]} 14.
Bb5 {[%clk 0:02:32.9]} 14... c6 {[%clk 0:02:19.8]} 15. Ba4 {[%clk 0:02:34]}
15... Qc7 {[%clk 0:02:18.3]} 16. c4 {[%clk 0:02:25.7]} 16... Nf4 {[%clk
0:02:12.4]} 17. Qd2 {[%clk 0:02:26.6]} 17... Ne6 {[%clk 0:02:07.6]} 18. Bh6
{[%clk 0:02:24.9]} 18... b5 {[%clk 0:02:03.9]} 19. Bb3 {[%clk 0:02:22.5]} 19...
bxc4 {[%clk 0:01:37.7]} 20. Bxc4 {[%clk 0:02:23.2]} 20... Nef8 {[%clk
0:01:38.8]} 21. Bxg7 {[%clk 0:02:07.4]} 21... Kxg7 {[%clk 0:01:39.5]} 22. Neg5
{[%clk 0:02:08.6]} 22... e6 {[%clk 0:01:36.8]} 23. Ne5 {[%clk 0:02:09.3]} 23...
Nxe5 {[%clk 0:01:32.5]} 24. dxe5 {[%clk 0:02:11.2]} 24... c5 {[%clk 0:01:25.9]}
25. Qf4 {[%clk 0:02:07.6]} 25... Nh7 {[%clk 0:01:23.6]} 26. g4 {[%clk
0:02:05.3]} 26... Nxg5 {[%clk 0:01:14.5]} 27. Qf6+ {[%clk 0:01:55.4]} 27... Kg8
{[%clk 0:01:02.7]} 28. Qxg5 {[%clk 0:01:56.3]} 28... Bf3 {[%clk 0:01:00.8]} 29.
gxh5 {[%clk 0:01:46.6]} 29... Bxh5 {[%clk 0:01:00.8]} 30. Rd6 {[%clk 0:01:43.6]}
30... Rb8 {[%clk 0:00:58.3]} 31. Rg1 {[%clk 0:01:37.9]} 31... Qb7 {[%clk
0:00:56.4]} 32. b3 {[%clk 0:01:36]} 32... Qf3 {[%clk 0:00:50.1]} 33. Rd2 {[%clk
0:01:12.9]} 33... Rb4 {[%clk 0:00:42.6]} 34. Qe3 {[%clk 0:00:41.6]} 34... Qb7
{[%clk 0:00:30.6]} 35. Ka1 {[%clk 0:00:38.7]} 35... a5 {[%clk 0:00:29.5]} 36.
Qh6 {[%clk 0:00:20.3]} 36... Qf3 {[%clk 0:00:17.7]} 37. Qe3 {[%clk 0:00:18.7]}
37... Qxe3 {[%clk 0:00:15.2]} 38. fxe3 {[%clk 0:00:19.5]} 38... a4 {[%clk
0:00:16.8]} 39. Rd7 {[%clk 0:00:18.3]} 39... axb3 {[%clk 0:00:17.4]} 40. axb3
{[%clk 0:00:20.2]} 40... Ra8+ {[%clk 0:00:14.9]} 41. Kb2 {[%clk 0:00:21]} 41...
Rab8 {[%clk 0:00:16.4]} 42. Kc3 {[%clk 0:00:21.8]} 42... R4b7 {[%clk 0:00:18]}
43. Rd6 {[%clk 0:00:19.7]} 43... Bf3 {[%clk 0:00:14.7]} 44. Ra1 {[%clk
0:00:14.6]} 44... Kg7 {[%clk 0:00:12.3]} 45. Ra5 {[%clk 0:00:15]} 45... Rc7
{[%clk 0:00:13]} 46. Rd2 {[%clk 0:00:10.1]} 46... Rh8 {[%clk 0:00:13.3]} 47. Rf2
{[%clk 0:00:11.6]} 47... Bg4 {[%clk 0:00:10.2]} 48. Rf4 {[%clk 0:00:12]} 48...
Bh3 {[%clk 0:00:05.3]} 49. Be2 {[%clk 0:00:08.7]} 49... Bf5 {[%clk 0:00:05.3]}
50. e4 {[%clk 0:00:09.1]} 50... Bh3 {[%clk 0:00:06]} 51. Ra1 {[%clk 0:00:10.5]}
51... Rb8 {[%clk 0:00:04.6]} 52. Rh1 {[%clk 0:00:10.8]} 52... Bg2 {[%clk
0:00:05.2]} 53. Rh2 {[%clk 0:00:11.4]} 53... Rcb7 {[%clk 0:00:05.1]} 54. Bc4
{[%clk 0:00:12.3]} 1-0

[Event "*** MasterClass Titled Tuesday Blitz"]
[Site "Chess.com"]
[Date "2017.08.01"]
[Round "9"]
[White "AndrewMcStone"]
[Black "abubakrtagelsir"]
[Result "1-0"]
[WhiteElo "2080"]
[BlackElo "2280"]
[TimeControl "180+2"]
[EndTime "15:06:26 PDT"]
[Termination "AndrewMcStone won by resignation"]

1. d4 {[%clk 0:03:01.9]} 1... d5 {[%clk 0:02:59.9]} 2. c4 {[%clk 0:03:02.3]}
2... c6 {[%clk 0:03:00.8]} 3. Nc3 {[%clk 0:03:03.5]} 3... Nf6 {[%clk 0:03:02.7]}
4. e3 {[%clk 0:03:04.8]} 4... a6 {[%clk 0:03:03.3]} 5. Nf3 {[%clk 0:03:03.5]}
5... b5 {[%clk 0:03:02.7]} 6. c5 {[%clk 0:03:04.8]} 6... Bg4 {[%clk 0:03:02.6]}
7. Qb3 {[%clk 0:03:04.1]} 7... Bxf3 {[%clk 0:03:02.5]} 8. gxf3 {[%clk 0:03:06]}
8... e5 {[%clk 0:03:03.4]} 9. a4 {[%clk 0:03:06.1]} 9... exd4 {[%clk 0:03:01.2]}
10. exd4 {[%clk 0:03:05.8]} 10... Nbd7 {[%clk 0:02:42.5]} 11. Qa3 {[%clk
0:03:04.5]} 11... b4 {[%clk 0:02:29]} 12. Qxb4 {[%clk 0:03:03.9]} 12... Rb8
{[%clk 0:02:26.5]} 13. Qa3 {[%clk 0:03:02.9]} 13... a5 {[%clk 0:02:24.9]} 14.
Bd2 {[%clk 0:02:24.2]} 14... Be7 {[%clk 0:02:22.3]} 15. Bd3 {[%clk 0:02:15.7]}
15... O-O {[%clk 0:02:21.8]} 16. Ne2 {[%clk 0:02:07.6]} 16... Re8 {[%clk
0:02:08.9]} 17. O-O {[%clk 0:02:03]} 17... Nf8 {[%clk 0:02:05.3]} 18. Rab1
{[%clk 0:01:38.9]} 18... Ng6 {[%clk 0:01:02.6]} 19. Bxg6 {[%clk 0:01:36.4]}
19... fxg6 {[%clk 0:01:02.6]} 20. b4 {[%clk 0:01:36.8]} 20... axb4 {[%clk
0:00:56.7]} 21. Rxb4 {[%clk 0:01:33]} 21... Ra8 {[%clk 0:00:57.7]} 22. Nf4
{[%clk 0:00:45.5]} 22... Qc8 {[%clk 0:00:47.4]} 23. Re1 {[%clk 0:00:37.9]} 23...
Qf5 {[%clk 0:00:46.6]} 24. Re5 {[%clk 0:00:28.5]} 24... Qc2 {[%clk 0:00:34.6]}
25. Qc3 {[%clk 0:00:19.5]} 25... Qd1+ {[%clk 0:00:21.4]} 26. Re1 {[%clk
0:00:18.7]} 26... Qxe1+ {[%clk 0:00:13.7]} 27. Bxe1 {[%clk 0:00:20.6]} 27... g5
{[%clk 0:00:11.6]} 28. Nd3 {[%clk 0:00:19.2]} 28... Nh5 {[%clk 0:00:11.4]} 29.
Bd2 {[%clk 0:00:18.6]} 29... Rf8 {[%clk 0:00:10.4]} 30. Ne5 {[%clk 0:00:18.4]}
30... Rac8 {[%clk 0:00:10.4]} 31. Kg2 {[%clk 0:00:17.1]} 31... Bf6 {[%clk
0:00:08.1]} 32. Rb7 {[%clk 0:00:17.3]} 32... Rce8 {[%clk 0:00:05.7]} 33. Nd7
{[%clk 0:00:12.7]} 33... Rf7 {[%clk 0:00:05.7]} 34. Nxf6+ {[%clk 0:00:13.2]}
34... Rxf6 {[%clk 0:00:06.6]} 35. h3 {[%clk 0:00:08]} 35... h6 {[%clk 0:00:07]}
36. a5 {[%clk 0:00:08.4]} 36... Ra8 {[%clk 0:00:05.5]} 37. Rc7 {[%clk
0:00:07.1]} 37... Nf4+ {[%clk 0:00:04.7]} 38. Bxf4 {[%clk 0:00:06.9]} 38... gxf4
{[%clk 0:00:05.4]} 39. Rb7 {[%clk 0:00:08.2]} 39... Rff8 {[%clk 0:00:04.4]} 40.
Rb6 {[%clk 0:00:07.7]} 40... Rf6 {[%clk 0:00:05.1]} 41. a6 {[%clk 0:00:08.3]}
41... Rg6+ {[%clk 0:00:04.9]} 42. Kh2 {[%clk 0:00:08.7]} 42... Rf6 {[%clk
0:00:04.2]} 43. Qb4 {[%clk 0:00:09.3]} 43... Kh7 {[%clk 0:00:04.2]} 44. Qa5
{[%clk 0:00:08.5]} 44... Rf7 {[%clk 0:00:04.4]} 45. Qb4 {[%clk 0:00:07]} 45...
Rfa7 {[%clk 0:00:04.3]} 46. Qa5 {[%clk 0:00:07.2]} 46... h5 {[%clk 0:00:04.7]}
47. Rxc6 {[%clk 0:00:07.8]} 47... Rb8 {[%clk 0:00:05.2]} 48. Rb6 {[%clk
0:00:08.5]} 48... Rba8 {[%clk 0:00:05.9]} 49. c6 {[%clk 0:00:09.4]} 49... Rc8
{[%clk 0:00:06.7]} 50. Rb7 {[%clk 0:00:09.2]} 50... Raa8 {[%clk 0:00:05.4]} 51.
c7 {[%clk 0:00:09.3]} 51... Kh6 {[%clk 0:00:04.6]} 52. Qb6+ {[%clk 0:00:08.7]}
52... g6 {[%clk 0:00:05]} 53. a7 {[%clk 0:00:09.5]} 53... Rf8 {[%clk 0:00:04.6]}
54. Rb8 {[%clk 0:00:10.2]} 54... Raxb8 {[%clk 0:00:03.3]} 55. axb8=Q {[%clk
0:00:10.6]} 55... Rxb8 {[%clk 0:00:04]} 56. cxb8=Q {[%clk 0:00:11.1]} 1-0